[Event "NJSK 2024 C"]
[Site "Groningen, Netherlands"]
[Date "2024.05.03"]
[Round "9.2"]
[White "Terlouw, Wouter"]
[Black "Chua, Ethan"]
[Result "0-1"]
[TimeControl "90min/40moves + 30min + 30sec/move"]
[WhiteElo "1961"]
[BlackElo "2000"]

1. d4 {[%clk 01:30:58]} {[%emt 00:00:01]} Nf6 {[%clk 01:30:26]} {[%emt
00:00:35]} 2. Bf4 {[%clk 01:31:24]} {[%emt 00:00:04]} c5 {[%clk 01:30:41]}
{[%emt 00:00:15]} 3. e3 {[%clk 01:31:35]} {[%emt 00:00:19]} Qb6 {[%clk
01:31:05]} {[%emt 00:00:06]} 4. Na3 {[%clk 01:31:54]} {[%emt 00:00:11]} Qxb2
{[%clk 01:30:50]} {[%emt 00:00:45]} 5. Nb5 {[%clk 01:32:19]} {[%emt 00:00:06]}
Nd5 {[%clk 01:31:09]} {[%emt 00:00:10]} 6. a3 {[%clk 01:32:43]} {[%emt
00:00:06]} Na6 {[%clk 01:24:49]} {[%emt 00:06:50]} 7. Rb1 {[%clk 01:32:48]}
{[%emt 00:00:25]} Qa2 {[%clk 01:25:05]} {[%emt 00:00:14]} 8. Bg3 {[%clk
01:30:08]} {[%emt 00:03:10]} cxd4 {[%clk 01:11:24]} {[%emt 00:14:11]} 9. exd4
{[%clk 01:27:51]} {[%emt 00:02:46]} d6 {[%clk 01:10:44]} {[%emt 00:01:12]} 10.
c4 {[%clk 01:22:05]} {[%emt 00:06:16]} Ndc7 {[%clk 01:02:25]} {[%emt 00:08:48]}
11. Qc1 {[%clk 01:18:41]} {[%emt 00:03:53]} Nxb5 {[%clk 00:58:41]} {[%emt
00:04:15]} 12. Ra1 {[%clk 01:16:55]} {[%emt 00:02:15]} Qb3 {[%clk 00:58:52]}
{[%emt 00:00:20]} 13. cxb5 {[%clk 01:17:12]} {[%emt 00:00:13]} Qe6+ {[%clk
00:58:55]} {[%emt 00:00:27]} 14. Be2 {[%clk 01:17:26]} {[%emt 00:00:16]} Nb8
{[%clk 00:59:06]} {[%emt 00:00:19]} 15. d5 {[%clk 01:16:32]} {[%emt 00:01:24]}
Qd7 {[%clk 00:56:13]} {[%emt 00:03:23]} 16. b6 {[%clk 01:12:44]} {[%emt
00:04:18]} a6 {[%clk 00:54:25]} {[%emt 00:02:18]} 17. Qc3 {[%clk 01:11:59]}
{[%emt 00:01:14]} Qd8 {[%clk 00:54:23]} {[%emt 00:00:32]} 18. a4 {[%clk
01:09:33]} {[%emt 00:02:57]} Nd7 {[%clk 00:54:02]} {[%emt 00:00:51]} 19. a5
{[%clk 01:09:24]} {[%emt 00:00:39]} Nf6 {[%clk 00:51:41]} {[%emt 00:02:50]} 20.
Qd2 {[%clk 00:58:21]} {[%emt 00:11:34]} g6 {[%clk 00:49:42]} {[%emt 00:02:29]}
21. Rc1 {[%clk 00:52:57]} {[%emt 00:05:54]} Bg7 {[%clk 00:49:50]} {[%emt
00:00:22]} 22. Nf3 {[%clk 00:52:12]} {[%emt 00:01:15]} O-O {[%clk 00:49:00]}
{[%emt 00:01:17]} 23. O-O {[%clk 00:51:39]} {[%emt 00:01:05]} Ne4 {[%clk
00:47:52]} {[%emt 00:01:39]} 24. Qe3 {[%clk 00:51:18]} {[%emt 00:00:48]} Nc5
{[%clk 00:47:48]} {[%emt 00:00:36]} 25. Nd2 {[%clk 00:45:38]} {[%emt 00:06:10]}
Bf5 {[%clk 00:35:38]} {[%emt 00:12:40]} 26. Rc4 {[%clk 00:43:10]} {[%emt
00:02:57]} Rc8 {[%clk 00:31:45]} {[%emt 00:04:25]} 27. Rfc1 {[%clk 00:42:39]}
{[%emt 00:01:00]} Bb2 {[%clk 00:31:16]} {[%emt 00:01:00]} 28. Re1 {[%clk
00:42:44]} {[%emt 00:00:24]} Qd7 {[%clk 00:28:07]} {[%emt 00:03:40]} 29. h3
{[%clk 00:32:11]} {[%emt 00:11:02]} Na4 {[%clk 00:18:37]} {[%emt 00:10:01]} 30.
Bd1 {[%clk 00:30:38]} {[%emt 00:02:02]} Nc3 {[%clk 00:18:12]} {[%emt 00:00:55]}
31. Bf3 {[%clk 00:27:43]} {[%emt 00:03:25]} Nb5 {[%clk 00:11:10]} {[%emt
00:07:33]} 32. Qxe7 {[%clk 00:26:58]} {[%emt 00:01:14]} Rce8 {[%clk 00:11:07]}
{[%emt 00:00:35]} 33. Bh4 {[%clk 00:26:12]} {[%emt 00:01:15]} f6 {[%clk
00:10:07]} {[%emt 00:01:30]} 34. Rce4 {[%clk 00:24:23]} {[%emt 00:02:18]} Rxe7
{[%clk 00:09:58]} {[%emt 00:00:40]} 35. Rxe7 {[%clk 00:24:45]} {[%emt
00:00:07]} Qc8 {[%clk 00:09:55]} {[%emt 00:00:35]} 36. g4 {[%clk 00:24:18]}
{[%emt 00:00:57]} Bd7 {[%clk 00:09:45]} {[%emt 00:00:40]} 37. Ne4 {[%clk
00:24:40]} {[%emt 00:00:08]} Be5 {[%clk 00:09:53]} {[%emt 00:00:21]} 38. g5
{[%clk 00:24:40]} {[%emt 00:00:29]} Nd4 {[%clk 00:09:29]} {[%emt 00:00:56]} 39.
Bd1 {[%clk 00:24:36]} {[%emt 00:00:34]} Nf5 {[%clk 00:08:58]} {[%emt 00:01:00]}
40. f4 {[%clk 00:24:49]} {[%emt 00:00:17]} Nxe7 {[%clk 00:08:53]} {[%emt
00:00:36]} 41. fxe5 {[%clk 00:25:11]} {[%emt 00:00:08]} Nf5 {[%clk 00:08:25]}
{[%emt 00:00:59]} 42. Nxf6+ {[%clk 00:24:43]} {[%emt 00:00:57]} Rxf6 {[%clk
00:08:19]} {[%emt 00:00:35]} 43. gxf6 {[%clk 00:25:08]} {[%emt 00:00:06]} Nxh4
{[%clk 00:08:20]} {[%emt 00:00:29]} 44. e6 {[%clk 00:24:57]} {[%emt 00:00:40]}
Qc3 {[%clk 00:08:16]} {[%emt 00:00:35]} 45. Re2 {[%clk 00:24:39]} {[%emt
00:00:47]} Qg3+ {[%clk 00:08:08]} {[%emt 00:00:39]} 46. Kf1 {[%clk 00:25:02]}
{[%emt 00:00:07]} Qxh3+ {[%clk 00:08:26]} {[%emt 00:00:12]} 47. Ke1 {[%clk
00:25:22]} {[%emt 00:00:10]} Qh1+ {[%clk 00:08:40]} {[%emt 00:00:16]} 48. Kf2
{[%clk 00:25:32]} {[%emt 00:00:14]} Qf3+ {[%clk 00:08:25]} {[%emt 00:00:50]} 49.
Kg1 {[%clk 00:25:46]} {[%emt 00:00:13]} Qg3+ {[%clk 00:08:09]} {[%emt
00:00:50]} 50. Kf1 {[%clk 00:25:25]} {[%emt 00:00:51]} Nf3 {[%clk 00:08:04]}
{[%emt 00:00:35]} 51. Rf2 {[%clk 00:25:35]} {[%emt 00:00:20]} Bb5+ {[%clk
00:08:23]} {[%emt 00:00:11]} 0-1

[Event "NJSK 2024 C"]
[Site "Groningen, Netherlands"]
[Date "2024.05.03"]
[Round "9.3"]
[White "Kurt, Sascha"]
[Black "Ritzerveld, Noah"]
[Result "1-0"]
[TimeControl "90min/40moves + 30min + 30sec/move"]
[WhiteElo "2096"]
[BlackElo "2103"]

1. e4 {[%clk 01:30:56]} {[%emt 00:00:04]} e5 {[%clk 01:30:56]} {[%emt
00:00:05]} 2. Nf3 {[%clk 01:31:18]} {[%emt 00:00:07]} Nc6 {[%clk 01:31:22]}
{[%emt 00:00:05]} 3. Bc4 {[%clk 01:31:43]} {[%emt 00:00:04]} Nf6 {[%clk
01:31:48]} {[%emt 00:00:05]} 4. Ng5 {[%clk 01:31:52]} {[%emt 00:00:21]} d5
{[%emt 00:00:10]} 5. exd5 {[%clk 01:32:17]} {[%emt 00:00:01]} Na5 {[%clk
01:32:37]} {[%emt 00:00:05]} 6. Bb5+ {[%clk 01:32:42]} {[%emt 00:00:04]} c6
{[%clk 01:33:03]} {[%emt 00:00:05]} 7. dxc6 {[%clk 01:33:08]} {[%emt 00:00:03]}
bxc6 {[%clk 01:33:30]} {[%emt 00:00:03]} 8. Bd3 {[%clk 01:33:25]} {[%emt
00:00:13]} Nd5 {[%clk 01:33:55]} {[%emt 00:00:06]} 9. Nf3 {[%clk 01:33:47]}
{[%emt 00:00:07]} Bd6 {[%clk 01:34:19]} {[%emt 00:00:06]} 10. Nc3 {[%clk
01:34:05]} {[%emt 00:00:12]} O-O {[%clk 01:31:45]} {[%emt 00:03:04]} 11. Be2
{[%clk 01:34:27]} {[%emt 00:00:08]} f5 {[%clk 01:27:43]} {[%emt 00:04:33]} 12.
d3 {[%clk 01:34:26]} {[%emt 00:00:30]} Qf6 {[%clk 01:26:32]} {[%emt 00:01:41]}
13. Bd2 {[%clk 01:32:29]} {[%emt 00:02:28]} Nb7 {[%clk 01:25:21]} {[%emt
00:01:41]} 14. O-O {[%clk 01:31:39]} {[%emt 00:01:20]} Be6 {[%clk 01:21:05]}
{[%emt 00:04:46]} 15. Ng5 {[%clk 01:17:02]} {[%emt 00:15:06]} Nxc3 {[%clk
01:18:35]} {[%emt 00:03:01]} 16. bxc3 {[%clk 01:17:25]} {[%emt 00:00:07]} Bd7
{[%clk 01:17:52]} {[%emt 00:01:13]} 17. d4 {[%clk 01:13:14]} {[%emt 00:04:41]}
exd4 {[%clk 01:07:32]} {[%emt 00:10:49]} 18. Bc4+ {[%clk 01:13:32]} {[%emt
00:00:13]} Kh8 {[%clk 01:07:42]} {[%emt 00:00:20]} 19. Qh5 {[%clk 01:07:57]}
{[%emt 00:06:04]} h6 {[%clk 01:06:54]} {[%emt 00:01:19]} 20. Nf7+ {[%clk
01:07:03]} {[%emt 00:01:24]} Kh7 {[%clk 01:07:12]} {[%emt 00:00:11]} 21. Ng5+
{[%clk 01:05:43]} {[%emt 00:01:50]} Kh8 {[%clk 01:07:33]} {[%emt 00:00:09]} 22.
Nf7+ {[%clk 01:02:18]} {[%emt 00:03:56]} Kh7 {[%clk 01:07:51]} {[%emt
00:00:11]} 23. Rab1 {[%clk 01:01:05]} {[%emt 00:01:45]} Rab8 {[%clk 00:56:02]}
{[%emt 00:12:18]} 24. Ng5+ {[%clk 00:58:46]} {[%emt 00:02:49]} Kh8 {[%clk
00:56:20]} {[%emt 00:00:12]} 25. Nf7+ {[%clk 00:58:44]} {[%emt 00:00:31]} Kh7
{[%emt 00:12:55]} 26. Bg5 {[%clk 00:46:44]} Qg6 {[%clk 00:56:52]} {[%emt
00:00:04]} 27. Qxg6+ {[%clk 00:47:08]} {[%emt 00:00:05]} Kxg6 {[%clk 00:57:18]}
{[%emt 00:00:04]} 28. Rxb7 {[%clk 00:47:31]} {[%emt 00:00:07]} Bxh2+ {[%clk
00:56:32]} {[%emt 00:01:16]} 29. Kxh2 {[%clk 00:47:46]} {[%emt 00:00:15]} Rxb7
{[%clk 00:56:20]} {[%emt 00:00:42]} 30. Nd6 {[%clk 00:47:59]} {[%emt 00:00:18]}
Rb6 {[%clk 00:50:54]} {[%emt 00:05:57]} 31. Be7 {[%clk 00:47:00]} {[%emt
00:01:27]} Rfb8 {[%clk 00:49:25]} {[%emt 00:01:58]} 32. cxd4 {[%clk 00:46:42]}
{[%emt 00:00:49]} Rb1 {[%clk 00:48:43]} {[%emt 00:01:12]} 33. Rxb1 {[%clk
00:45:34]} {[%emt 00:01:38]} Rxb1 {[%clk 00:49:04]} {[%emt 00:00:09]} 34. Bf7+
{[%clk 00:45:36]} {[%emt 00:00:27]} Kh7 {[%clk 00:49:23]} {[%emt 00:00:11]} 35.
Nc4 {[%clk 00:44:19]} {[%emt 00:01:48]} Rd1 {[%clk 00:45:44]} {[%emt 00:04:10]}
36. Bc5 {[%clk 00:44:04]} {[%emt 00:00:45]} f4 {[%clk 00:44:38]} {[%emt
00:01:36]} 37. Ne5 {[%clk 00:42:54]} {[%emt 00:01:39]} Bf5 {[%clk 00:45:04]}
{[%emt 00:00:04]} 38. Bb3 {[%clk 00:38:39]} {[%emt 00:04:45]} g5 {[%clk
00:44:29]} {[%emt 00:01:05]} 39. Nxc6 {[%clk 00:37:28]} {[%emt 00:01:41]} h5
{[%clk 00:44:06]} {[%emt 00:00:52]} 40. d5 {[%clk 00:24:55]} {[%emt 00:13:04]}
h4 {[%clk 00:35:29]} {[%emt 00:09:07]} 41. Nd4 {[%clk 00:23:30]} {[%emt
00:01:55]} Bg6 {[%clk 00:31:21]} {[%emt 00:04:38]} 42. Ne6 {[%clk 00:22:14]}
{[%emt 00:01:47]} g4 {[%clk 00:29:32]} {[%emt 00:02:19]} 43. Nxf4 {[%clk
00:22:17]} {[%emt 00:00:27]} Be4 {[%clk 00:29:18]} {[%emt 00:00:44]} 44. d6
{[%clk 00:19:31]} {[%emt 00:03:15]} Kh6 {[%clk 00:28:18]} {[%emt 00:01:30]} 45.
c4 {[%clk 00:16:31]} {[%emt 00:03:30]} Rd2 {[%clk 00:27:55]} {[%emt 00:00:53]}
46. Nd5 {[%clk 00:16:23]} {[%emt 00:00:38]} g3+ {[%clk 00:27:40]} {[%emt
00:00:45]} 47. fxg3 {[%clk 00:15:47]} {[%emt 00:01:06]} Kh5 {[%clk 00:24:49]}
{[%emt 00:03:21]} 48. g4+ {[%clk 00:15:44]} {[%emt 00:00:34]} Kxg4 {[%clk
00:24:48]} {[%emt 00:00:31]} 49. Nf6+ {[%clk 00:16:07]} {[%emt 00:00:07]} Kf4
{[%clk 00:24:50]} {[%emt 00:00:28]} 50. Nxe4 {[%clk 00:16:21]} {[%emt
00:00:15]} Kxe4 {[%clk 00:25:15]} {[%emt 00:00:05]} 51. Bxa7 {[%clk 00:15:42]}
{[%emt 00:01:11]} Kf4 {[%clk 00:25:17]} {[%emt 00:00:27]} 52. c5 {[%clk
00:14:43]} {[%emt 00:01:29]} Kg4 {[%clk 00:25:13]} {[%emt 00:00:33]} 53. Be6+
{[%clk 00:15:04]} {[%emt 00:00:09]} Kf4 {[%clk 00:25:38]} {[%emt 00:00:05]} 54.
Bb6 {[%clk 00:15:10]} {[%emt 00:00:24]} h3 {[%clk 00:25:47]} {[%emt 00:00:21]}
55. Bxh3 {[%clk 00:15:33]} {[%emt 00:00:06]} 1-0

[Event "NJSK 2024 C"]
[Site "Groningen, Netherlands"]
[Date "2024.05.03"]
[Round "9.4"]
[White "Darie, Aden"]
[Black "Aravindhan, Achyuth"]
[Result "1/2-1/2"]
[TimeControl "90min/40moves + 30min + 30sec/move"]
[WhiteElo "1923"]
[BlackElo "2071"]

1. e4 {[%clk 01:30:55]} {[%emt 00:00:03]} c5 {[%clk 01:30:17]} {[%emt
00:00:44]} 2. Nf3 {[%clk 01:31:20]} {[%emt 00:00:05]} Nc6 {[%clk 01:30:40]}
{[%emt 00:00:07]} 3. d4 {[%clk 01:31:45]} {[%emt 00:00:05]} cxd4 {[%clk
01:31:05]} {[%emt 00:00:05]} 4. Nxd4 {[%clk 01:32:10]} {[%emt 00:00:04]} Nf6
{[%clk 01:31:29]} {[%emt 00:00:07]} 5. Nc3 {[%clk 01:32:36]} {[%emt 00:00:04]}
e5 {[%clk 01:31:54]} {[%emt 00:00:05]} 6. Ndb5 {[%clk 01:33:02]} {[%emt
00:00:04]} d6 {[%clk 01:32:18]} {[%emt 00:00:07]} 7. Bg5 {[%clk 01:33:26]}
{[%emt 00:00:03]} a6 {[%clk 01:32:45]} {[%emt 00:00:05]} 8. Na3 {[%clk
01:33:52]} {[%emt 00:00:04]} b5 {[%clk 01:33:14]} {[%emt 00:00:02]} 9. Nd5
{[%clk 01:34:16]} {[%emt 00:00:06]} Be7 {[%clk 01:33:40]} {[%emt 00:00:04]} 10.
Bxf6 {[%clk 01:34:40]} {[%emt 00:00:05]} Bxf6 {[%clk 01:34:05]} {[%emt
00:00:05]} 11. c4 {[%clk 01:35:05]} {[%emt 00:00:05]} b4 {[%clk 01:34:29]}
{[%emt 00:00:07]} 12. Nc2 {[%clk 01:35:31]} {[%emt 00:00:03]} a5 {[%clk
01:34:48]} {[%emt 00:00:12]} 13. g3 {[%clk 01:35:46]} {[%emt 00:00:14]} O-O
{[%clk 01:35:05]} {[%emt 00:00:13]} 14. Bg2 {[%clk 01:36:12]} {[%emt 00:00:04]}
g6 {[%clk 01:35:22]} {[%emt 00:00:13]} 15. O-O {[%clk 01:36:35]} {[%emt
00:00:07]} Bg7 {[%clk 01:34:30]} {[%emt 00:01:23]} 16. Qd2 {[%clk 01:33:07]}
{[%emt 00:03:57]} h5 {[%clk 01:34:53]} {[%emt 00:00:07]} 17. h4 {[%clk
01:29:57]} {[%emt 00:03:40]} Be6 {[%clk 01:34:26]} {[%emt 00:00:58]} 18. Rad1
{[%clk 01:29:20]} {[%emt 00:01:06]} Qb8 {[%clk 01:34:31]} {[%emt 00:00:25]} 19.
b3 {[%clk 01:28:43]} {[%emt 00:01:07]} Rd8 {[%clk 01:34:04]} {[%emt 00:00:57]}
20. f4 {[%clk 01:21:59]} {[%emt 00:07:14]} Bg4 {[%clk 01:32:10]} {[%emt
00:02:24]} 21. Rde1 {[%clk 01:21:05]} {[%emt 00:01:23]} a4 {[%clk 01:30:59]}
{[%emt 00:01:43]} 22. f5 {[%clk 01:16:25]} {[%emt 00:05:09]} axb3 {[%clk
01:22:46]} {[%emt 00:08:44]} 23. axb3 {[%clk 01:16:41]} {[%emt 00:00:14]} Ra2
{[%clk 01:22:47]} {[%emt 00:00:26]} 24. fxg6 {[%clk 01:12:47]} {[%emt
00:04:25]} fxg6 {[%clk 01:19:34]} {[%emt 00:03:43]} 25. Ra1 {[%clk 01:12:26]}
{[%emt 00:00:52]} Qa7+ {[%clk 00:46:32]} {[%emt 00:33:32]} 26. Kh2 {[%clk
01:04:14]} {[%emt 00:08:41]} Rf8 {[%clk 00:43:55]} {[%emt 00:03:08]} 27. Rxf8+
{[%clk 01:02:10]} Bxf8 {[%clk 00:44:02]} {[%emt 00:02:57]} 28. Rxa2 {[%clk
00:57:40]} {[%emt 00:05:00]} Qxa2 {[%clk 00:44:17]} {[%emt 00:00:14]} 29. Qg5
{[%clk 00:53:55]} {[%emt 00:04:16]} Kh7 {[%clk 00:43:56]} {[%emt 00:00:50]} 30.
Nf6+ {[%clk 00:49:53]} {[%emt 00:04:33]} Kg7 {[%clk 00:43:38]} {[%emt
00:00:48]} 31. Nxg4 {[%clk 00:49:47]} {[%emt 00:00:36]} hxg4 {[%clk 00:43:44]}
{[%emt 00:00:24]} 32. h5 {[%clk 00:46:58]} {[%emt 00:03:19]} Qxc2 {[%clk
00:38:27]} {[%emt 00:05:46]} 33. Qxg6+ {[%clk 00:47:22]} {[%emt 00:00:06]} Kh8
{[%clk 00:38:46]} {[%emt 00:00:12]} 34. Qf7 {[%clk 00:47:37]} {[%emt 00:00:15]}
Bg7 {[%clk 00:37:57]} {[%emt 00:01:19]} 35. Qe8+ {[%clk 00:47:37]} {[%emt
00:00:30]} Kh7 {[%clk 00:38:20]} {[%emt 00:00:07]} 36. Qg6+ {[%clk 00:47:50]}
{[%emt 00:00:17]} Kh8 {[%clk 00:38:35]} {[%emt 00:00:14]} 37. Qe8+ {[%clk
00:48:01]} {[%emt 00:00:20]} Kh7 {[%clk 00:38:59]} {[%emt 00:00:06]} 38. Qg6+
{[%clk 00:48:26]} {[%emt 00:00:05]} Kh8 {[%clk 00:39:23]} {[%emt 00:00:06]} 39.
Qe8+ {[%clk 00:48:50]} {[%emt 00:00:05]} 1/2-1/2

[Event "NJSK 2024 C"]
[Site "Groningen, Netherlands"]
[Date "2024.05.03"]
[Round "9.5"]
[White "Roorda, Cas"]
[Black "Zecha, Oscar"]
[Result "0-1"]
[TimeControl "90min/40moves + 30min + 30sec/move"]
[WhiteElo "1828"]
[BlackElo "1998"]

1. e4 {[%clk 01:30:58]} {[%emt 00:00:02]} e5 {[%clk 01:30:57]} {[%emt
00:00:03]} 2. Nf3 {[%clk 01:31:24]} {[%emt 00:00:05]} Nc6 {[%clk 01:31:24]}
{[%emt 00:00:02]} 3. Bc4 {[%clk 01:31:50]} {[%emt 00:00:04]} Bc5 {[%clk
01:31:50]} {[%emt 00:00:03]} 4. c3 {[%clk 01:32:16]} {[%emt 00:00:06]} Nf6
{[%clk 01:32:15]} {[%emt 00:00:04]} 5. d3 {[%clk 01:32:44]} {[%emt 00:00:03]}
d6 {[%clk 01:32:41]} {[%emt 00:00:03]} 6. O-O {[%clk 01:33:10]} {[%emt
00:00:04]} O-O {[%clk 01:33:07]} {[%emt 00:00:04]} 7. Re1 {[%clk 01:33:35]}
{[%emt 00:00:06]} a6 {[%clk 01:31:50]} {[%emt 00:01:46]} 8. a4 {[%clk
01:33:56]} {[%emt 00:00:09]} Ba7 {[%clk 01:32:16]} {[%emt 00:00:04]} 9. h3
{[%clk 01:34:23]} {[%emt 00:00:04]} h6 {[%clk 01:32:34]} {[%emt 00:00:11]} 10.
Nbd2 {[%clk 01:34:36]} {[%emt 00:00:18]} Re8 {[%clk 01:26:05]} {[%emt
00:06:58]} 11. b4 {[%clk 01:34:43]} {[%emt 00:00:23]} Ne7 {[%clk 01:22:50]}
{[%emt 00:03:46]} 12. Qb3 {[%clk 01:31:11]} {[%emt 00:04:02]} Rf8 {[%clk
01:22:18]} {[%emt 00:01:01]} 13. d4 {[%clk 01:20:57]} {[%emt 00:10:44]} Ng6
{[%clk 01:20:17]} {[%emt 00:02:31]} 14. Qc2 {[%clk 01:10:49]} {[%emt 00:10:38]}
Nh5 {[%clk 01:07:55]} {[%emt 00:12:52]} 15. Bb2 {[%clk 00:58:37]} {[%emt
00:12:43]} Nhf4 {[%clk 01:07:31]} {[%emt 00:00:54]} 16. Bf1 {[%clk 00:55:33]}
{[%emt 00:03:33]} f5 {[%clk 00:50:20]} {[%emt 00:17:41]} 17. exf5 {[%clk
00:32:05]} {[%emt 00:23:58]} Bxf5 {[%clk 00:49:07]} {[%emt 00:01:43]} 18. Qb3+
{[%clk 00:31:56]} {[%emt 00:00:39]} Be6 {[%clk 00:48:53]} {[%emt 00:00:44]} 19.
c4 {[%clk 00:32:02]} {[%emt 00:00:24]} Qd7 {[%clk 00:30:59]} {[%emt 00:18:24]}
20. dxe5 {[%clk 00:25:55]} {[%emt 00:06:38]} dxe5 {[%clk 00:22:38]} {[%emt
00:08:51]} 21. Ne4 {[%clk 00:26:11]} {[%emt 00:00:14]} Qf7 {[%clk 00:19:36]}
{[%emt 00:03:32]} 22. Nxe5 {[%clk 00:19:23]} {[%emt 00:07:19]} Qf5 {[%clk
00:13:06]} {[%emt 00:06:59]} 23. Nxg6 {[%emt 00:05:22]} Qxg6 {[%clk 00:13:32]}
24. Kh2 {[%clk 00:12:35]} {[%emt 00:02:30]} Bf5 {[%clk 00:10:57]} {[%emt
00:03:06]} 25. c5+ {[%clk 00:12:54]} {[%emt 00:00:10]} Kh8 {[%clk 00:11:12]}
{[%emt 00:00:15]} 26. Ng3 {[%clk 00:10:35]} {[%emt 00:02:48]} Be6 {[%clk
00:11:00]} {[%emt 00:00:42]} 27. Qd1 {[%clk 00:05:21]} {[%emt 00:05:44]} Rad8
{[%clk 00:09:25]} {[%emt 00:02:05]} 28. Qb1 {[%clk 00:04:22]} {[%emt 00:01:30]}
Qf7 {[%clk 00:08:32]} {[%emt 00:01:23]} 29. Ne4 {[%clk 00:04:23]} {[%emt
00:00:28]} Bd5 {[%clk 00:07:10]} {[%emt 00:01:53]} 30. Ra3 {[%clk 00:03:48]}
{[%emt 00:01:05]} c6 {[%clk 00:03:33]} {[%emt 00:04:07]} 31. Rg3 {[%clk
00:04:04]} {[%emt 00:00:14]} Nh5 {[%clk 00:03:43]} {[%emt 00:00:20]} 32. Rge3
{[%clk 00:02:22]} {[%emt 00:02:13]} Bb8+ {[%clk 00:03:51]} {[%emt 00:00:21]} 33.
Nd6 {[%clk 00:00:39]} {[%emt 00:02:13]} Qf4+ {[%clk 00:03:18]} {[%emt
00:01:03]} 34. Kh1 {[%clk 00:00:52]} {[%emt 00:00:17]} Qxf2 {[%clk 00:03:11]}
{[%emt 00:00:37]} 35. Qg6 {[%clk 00:00:34]} {[%emt 00:00:48]} Qxb2 {[%clk
00:02:51]} {[%emt 00:00:50]} 36. R3e2 {[%clk 00:00:38]} {[%emt 00:00:26]} Rxf1+
{[%clk 00:01:01]} {[%emt 00:02:20]} 37. Rxf1 {[%clk 00:00:47]} {[%emt
00:00:21]} Qxe2 {[%clk 00:01:22]} {[%emt 00:00:09]} 0-1